bitfinex-derivatives/quotes_BTCF0:USTF0_20251230
["timestamp","ask_amount","ask_price","bid_price","bid_amount"]
[1767091685757,0.15297008,88160.0,88150.0,0.0113587]
[1767091685944,0.15332,88159.0,88132.0,0.08124582]
[1767091686145,0.15332,88159.0,88129.0,0.11300522]
[1767091686146,0.15332,88159.0,88147.0,0.0113591]
[1767091686350,0.15332,88159.0,88143.0,0.0113596]
[1767091686645,9.196e-05,88158.0,88145.0,0.0113594]
[1767091688053,9.196e-05,88158.0,88148.0,0.011359]
[1767091688245,9.196e-05,88158.0,88144.0,0.0172294]
[1767091689246,9.196e-05,88158.0,88147.0,0.0113591]
[1767091689448,9.196e-05,88158.0,88144.0,0.00587]
[1767091689751,0.15297008,88154.0,88144.0,0.00587]
[1767091689948,0.05684,88153.0,88135.0,0.0113606]
[1767091690254,0.15297008,88150.0,88131.0,0.0113611]
[1767091690445,0.0681984,88153.0,88124.0,0.1134417]
[1767091690446,0.09648,88149.0,88124.0,0.1134417]
[1767091690645,0.09648,88149.0,88120.0,0.24945008]
[1767091690842,0.09648,88149.0,88137.0,0.0113604]
[1767091691055,0.09648,88149.0,88134.0,0.00017017]
[1767091691449,0.09648,88149.0,88140.0,0.01136]
[1767091692154,0.09648,88149.0,88134.0,0.00017017]
[1767091692544,0.09648,88149.0,88142.0,0.0113597]
[1767091695351,0.1534,88148.0,88118.0,0.0022697]
[1767091695545,0.15297008,88140.0,88118.0,0.0022697]
[1767091695748,0.05688,88139.0,88120.0,0.15297008]
[1767091696347,0.05688,88139.0,88121.0,0.00017017]
[1767091696552,0.13979192,88138.0,88133.0,0.0113609]
[1767091696752,0.05698237,88137.0,88133.0,0.0113609]
[1767091697154,0.05698237,88137.0,88130.0,0.0113613]
[1767091697356,0.05698237,88137.0,88127.0,0.0113617]
[1767091697561,0.05698237,88137.0,88124.0,0.0113621]
[1767091698061,0.05698237,88137.0,88123.0,0.00017017]
[1767091698062,0.15297008,88134.0,88123.0,0.00017017]
[1767091698261,0.05698237,88137.0,88123.0,1.7e-07]
[1767091698857,0.05698237,88137.0,88123.0,0.01136227]
[1767091699158,0.05698237,88137.0,88124.0,0.0113621]
[1767091700557,0.05698237,88137.0,88123.0,1.7e-07]
[1767091700948,0.05698237,88137.0,88123.0,0.01136237]
[1767091701465,0.15297008,88133.0,88120.0,0.0113626]
[1767091701663,0.15297008,88130.0,88109.0,0.00011357]
[1767091701866,0.1534,88129.0,88109.0,0.00011357]
[1767091702169,0.15297008,88120.0,88109.0,3.57e-06]
[1767091702357,0.1534,88119.0,88105.0,0.0113645]
[1767091702557,0.15297008,88115.0,88092.0,0.09652]
[1767091702757,0.05688,88114.0,88093.0,0.0113661]
[1767091703060,0.05688,88113.0,88107.0,0.0113642]
[1767091703268,0.05688,88112.0,88107.0,0.0113642]
[1767091703468,0.0569672,88112.0,88094.0,0.011366]
[1767091703667,0.0569672,88112.0,88105.0,0.0113645]
[1767091705161,0.05688,88111.0,88107.0,0.0113642]
[1767091705357,0.05688,88118.0,88100.0,0.15297008]
[1767091705562,0.05688,88118.0,88113.0,0.0113634]
[1767091706269,8.162e-05,88117.0,88113.0,0.0113634]
[1767091706472,2e-08,88118.0,88113.0,0.0113634]
[1767091706965,2e-08,88118.0,88115.0,0.0113632]
[1767091707368,4.712e-05,88117.0,88115.0,0.0113632]
[1767091707568,0.05692,88119.0,88115.0,0.0113632]
[1767091707766,0.05692,88119.0,88117.0,0.0113629]
[1767091708465,7e-08,88121.0,88102.0,0.0113649]
[1767091708669,0.05692,88120.0,88102.0,0.0113649]
[1767091709570,7e-08,88121.0,88116.0,0.0113631]
[1767091712381,7e-08,88127.0,88125.0,0.011362]
[1767091712678,0.09656,88152.0,88146.0,0.0113593]
[1767091712878,0.05692,88152.0,88146.0,0.0113593]
[1767091713068,0.05692,88152.0,88143.0,0.0113596]
[1767091713275,0.05692,88152.0,88140.0,0.01136]
[1767091713571,0.15297008,88150.0,88132.0,1e-06]
[1767091713773,0.15297008,88140.0,88132.0,1e-06]
[1767091713975,0.15297008,88140.0,88125.0,0.15348]
[1767091714173,0.05692,88144.0,88125.0,0.15348]
[1767091714676,0.05692,88144.0,88132.0,0.011361]
[1767091715169,0.0113589,88149.0,88132.0,0.011361]
[1767091715375,0.15348,88148.0,88132.0,0.011361]
[1767091715773,0.0113589,88149.0,88132.0,0.011361]
[1767091715974,0.15348,88148.0,88132.0,0.011361]
[1767091717678,0.15574892,88148.0,88132.0,0.011361]
[1767091718273,0.15574892,88148.0,88126.0,0.00017017]
[1767091718576,0.15574892,88148.0,88133.0,0.0113608]
[1767091720077,0.05692,88147.0,88133.0,0.0113608]
[1767091720281,0.15348,88147.0,88133.0,0.0113608]
[1767091720669,0.15348,88147.0,88135.0,0.0113606]
[1767091721674,0.05692,88146.0,88135.0,0.0113606]
[1767091722071,0.05692,88146.0,88126.0,0.00017017]
[1767091724178,0.05692,88146.0,88131.0,0.0113612]
[1767091724873,0.02624194,88145.0,88131.0,0.0113612]
[1767091725079,0.05692,88146.0,88131.0,0.0113612]
[1767091725277,0.02624194,88145.0,88131.0,0.0113612]
[1767091725476,0.05692,88146.0,88131.0,0.0113612]
[1767091725678,0.02624467,88145.0,88131.0,0.0113612]
[1767091725979,0.05692,88146.0,88133.0,0.0113609]
[1767091726178,0.02624467,88145.0,88133.0,0.0113609]
[1767091726377,0.05692,88146.0,88133.0,0.0113609]
[1767091726582,0.02624372,88145.0,88133.0,0.0113609]
[1767091726880,0.05692,88146.0,88133.0,0.0113609]
[1767091727080,0.02624372,88145.0,88133.0,0.0113609]
[1767091727282,0.05692,88146.0,88133.0,0.0113609]
[1767091732686,0.0113596,88144.0,88130.0,0.0113613]
[1767091733680,0.05692,88146.0,88132.0,0.011361]
[1767091734980,0.0113598,88143.0,88129.0,0.0113614]
[1767091735180,0.01136,88141.0,88126.0,0.01153187]
[1767091735380,0.0113605,88137.0,88126.0,0.00017017]
[1767091735580,0.05692,88146.0,88125.0,0.12848017]
[1767091735776,0.02625549,88145.0,88125.0,0.12848017]
[1767091736082,0.05692,88146.0,88125.0,0.12848017]
[1767091736284,0.02625554,88145.0,88125.0,0.12848017]
[1767091736488,0.05692,88146.0,88125.0,0.12848017]
[1767091736688,0.02626059,88145.0,88127.0,0.00011346]
[1767091736891,0.02626099,88144.0,88127.0,0.00011346]
[1767091737092,0.05692,88146.0,88127.0,0.00011346]
[1767091737391,0.02626217,88145.0,88127.0,0.00011346]
[1767091737587,0.02626217,88144.0,88116.0,0.0113631]
[1767091737785,0.0113611,88132.0,88116.0,0.0113631]
[1767091742389,0.0113611,88132.0,88114.0,0.0113634]
[1767091742694,0.0113614,88130.0,88114.0,0.0113634]
[1767091742887,0.0113618,88127.0,88112.0,0.15344]
[1767091743293,0.0113621,88125.0,88112.0,0.09652]
[1767091743489,0.0113613,88131.0,88115.0,0.0113632]
[1767091743683,0.17978527,88130.0,88112.0,0.09652]
[1767091743882,0.02630527,88129.0,88112.0,0.09652]
[1767091744085,0.15348,88130.0,88112.0,0.09652]
[1767091744296,0.02630526,88129.0,88112.0,0.09652]
[1767091744495,0.15348,88130.0,88112.0,0.09652]
[1767091744696,0.0263007,88129.0,88112.0,0.09652]
[1767091744895,0.15348,88130.0,88112.0,0.09652]
[1767091745096,0.0263007,88129.0,88117.0,0.0113629]
[1767091745291,0.15348,88130.0,88117.0,0.0113629]
[1767091745492,0.00017017,88133.0,88120.0,0.0113625]
[1767091745694,0.08321665,88132.0,88120.0,0.0113625]
[1767091745894,0.02629665,88131.0,88120.0,0.0113625]
[1767091746196,0.02629665,88130.0,88120.0,0.0113625]
[1767091746399,0.05692,88132.0,88120.0,0.0113625]
[1767091746695,0.02629339,88131.0,88120.0,0.0113625]
[1767091746896,0.02629339,88130.0,88120.0,0.0113625]
[1767091747097,0.05692,88132.0,88120.0,0.0113625]
[1767091747298,0.02629339,88131.0,88120.0,0.0113625]
[1767091747488,0.05692,88132.0,88120.0,0.0113625]
[1767091748295,0.00017017,88133.0,88122.0,0.0113623]
[1767091748494,0.05692,88132.0,88122.0,0.0113623]
[1767091750494,0.05692,88132.0,88114.0,0.0113634]
[1767091750700,0.05692,88132.0,88123.0,0.0113621]
[1767091750997,0.00017017,88133.0,88114.0,0.0113633]
[1767091751300,0.00017017,88133.0,88126.0,0.0113618]
[1767091752997,0.08102572,88176.0,88123.0,0.05692]
[1767091753197,0.09656,88200.0,88157.0,0.15327838]
[1767091753397,0.07057878,88208.0,88170.0,0.15327838]
[1767091753600,0.05922738,88208.0,88171.0,0.15352]
[1767091753804,0.00226738,88208.0,88196.0,0.0113527]
[1767091754097,0.057,88207.0,88202.0,0.011352]
[1767091754292,0.05695,88207.0,88193.0,0.00016981]
[1767091754493,0.05695,88207.0,88185.0,0.0113542]
[1767091754804,0.0113517,88205.0,88183.0,0.09656]
[1767091756204,0.0113517,88205.0,88185.0,0.0113542]
[1767091756802,0.0113517,88205.0,88183.0,0.09656]
[1767091758005,0.0113521,88202.0,88182.0,0.057]
[1767091758205,0.0113521,88202.0,88182.0,0.0113546]
[1767091758406,0.0113521,88202.0,88181.0,0.09652]
[1767091758608,0.0113521,88202.0,88179.0,0.0683549]
[1767091759317,0.0113521,88202.0,88179.0,0.0113549]
[1767091759617,0.0113521,88202.0,88182.0,0.0113546]
[1767091764716,0.0113517,88206.0,88179.0,0.15352]
[1767091766123,0.0113517,88206.0,88184.0,0.0113543]
[1767091766817,8e-08,88208.0,88179.0,0.15352]
[1767091767021,0.15344,88207.0,88179.0,0.15352]
[1767091767612,0.15344,88207.0,88191.0,0.0113535]
[1767091769620,0.15344,88207.0,88187.0,0.011354]
[1767091769822,8e-08,88208.0,88187.0,0.011354]
[1767091769823,0.05696,88206.0,88187.0,0.011354]
[1767091770725,0.05696,88206.0,88189.0,0.0113537]
[1767091772823,0.05696,88205.0,88189.0,0.0113537]
[1767091773922,0.05696,88205.0,88179.0,0.15352]
[1767091774513,0.0683117,88205.0,88189.0,0.0113536]
[1767091775318,0.011352,88203.0,88189.0,0.0113536]
[1767091775828,0.068312,88203.0,88189.0,0.0113536]
[1767091776429,0.05696,88203.0,88169.0,0.0113563]
[1767091776624,0.011354,88187.0,88171.0,0.011356]
[1767091776824,0.00017006,88188.0,88173.0,0.0113558]
[1767091777018,0.00017006,88188.0,88172.0,0.09648]
[1767091777019,0.00017006,88188.0,88175.0,0.0113555]
[1767091777828,0.00017006,88188.0,88178.0,0.15304349]
[1767091778332,0.00017006,88188.0,88177.0,0.0113552]
[1767091780528,0.00017006,88188.0,88176.0,0.03038808]
[1767091780722,0.00017006,88188.0,88174.0,0.0113556]
[1767091780723,0.00017006,88188.0,88175.0,0.03038808]
[1767091781023,0.00017006,88188.0,88176.0,0.0113554]
[1767091781223,0.00017006,88188.0,88178.0,0.03038808]
[1767091782228,0.00017006,88188.0,88183.0,0.03038808]
[1767091782427,0.00017006,88188.0,88180.0,0.04070973]
[1767091782627,0.00017006,88188.0,88179.0,0.04070973]
[1767091782825,0.00017006,88188.0,88179.0,0.0254924]
[1767091783030,0.00017006,88188.0,88171.0,0.1534]
[1767091783225,0.0113546,88183.0,88171.0,0.05692]
[1767091784737,0.0113552,88178.0,88166.0,0.0610646]
[1767091784931,0.0113548,88181.0,88165.0,0.05692]
[1767091785631,0.0113551,88179.0,88165.0,0.05692]
[1767091788430,0.00017006,88188.0,88165.0,0.05692]
[1767091788636,0.05692,88213.0,88184.0,0.0113544]
[1767091788834,0.15304349,88210.0,88185.0,0.1534]
[1767091789027,0.15304349,88200.0,88186.0,0.0113541]
[1767091789230,8e-08,88208.0,88189.0,0.0113537]
[1767091789623,0.00017006,88207.0,88190.0,0.00017006]
[1767091790033,0.15304349,88200.0,88190.0,0.00017006]
[1767091791444,0.15304349,88200.0,88186.0,0.05696]
[1767091796535,0.15304349,88200.0,88181.0,0.0113548]
[1767091796732,0.15304349,88200.0,88185.0,0.05696]
[1767091798841,0.0113525,88199.0,88185.0,0.05696]
[1767091799644,0.15304349,88200.0,88185.0,0.05696]
[1767091800140,0.16439589,88200.0,88185.0,0.05696]
[1767091800645,0.0113526,88198.0,88185.0,0.05696]
[1767091800845,0.0113535,88191.0,88174.0,0.0610646]
[1767091801045,0.15304349,88184.0,88175.0,0.05692]
[1767091801443,0.15304349,88190.0,88175.0,0.05692]
[1767091801747,0.00017006,88191.0,88180.0,0.15304349]
[1767091802047,0.0682726,88198.0,88175.0,0.05692]
[1767091802241,0.05692,88198.0,88181.0,0.0113548]
[1767091802949,0.05709006,88198.0,88181.0,0.01152486]
[1767091803446,0.06844266,88198.0,88181.0,0.00017006]
[1767091803647,0.05709006,88198.0,88182.0,0.0113546]
[1767091803844,0.15304349,88192.0,88182.0,0.0113546]
[1767091804550,0.05709006,88198.0,88182.0,0.0113546]
[1767091805749,0.0113539,88188.0,88175.0,0.05696]
[1767091806145,0.15304349,88185.0,88175.0,0.05696]
[1767091806351,0.0113539,88188.0,88175.0,0.05696]
[1767091806752,0.0113542,88186.0,88172.0,0.05696]
[1767091806941,0.15304349,88182.0,88170.0,0.0610646]
[1767091807142,0.15304349,88182.0,88169.0,0.0610646]
[1767091807637,0.05696,88184.0,88160.0,0.08124582]
[1767091807843,0.15304349,88180.0,88161.0,0.15344]
[1767091808044,0.15304349,88180.0,88162.0,0.09648]
[1767091808354,0.011355,88179.0,88162.0,0.09648]
[1767091808949,0.011355,88179.0,88163.0,0.011357]
[1767091809744,0.011355,88179.0,88163.0,0.05696]
[1767091809745,0.15304349,88173.0,88163.0,0.05696]
[1767091809951,0.15304349,88173.0,88157.0,0.09648]
[1767091810254,0.15304349,88173.0,88144.0,0.0113594]
[1767091810255,0.15304349,88170.0,88158.0,0.05696]
[1767091811248,0.15304349,88170.0,88157.0,0.05696]
[1767091812950,0.15304349,88170.0,88158.0,0.04071099]
[1767091813151,0.0113564,88169.0,88156.0,0.04071099]
[1767091814263,0.0113564,88169.0,88154.0,0.04071099]
[1767091816158,0.09648,88170.0,88154.0,0.05206919]
[1767091816361,0.24952349,88170.0,88154.0,0.05206919]
[1767091816658,0.24952349,88170.0,88154.0,0.04071099]
[1767091817061,0.24952349,88170.0,88153.0,0.04071099]
[1767091817654,0.24952349,88170.0,88154.0,0.04071099]
[1767091818053,0.24952349,88170.0,88154.0,0.05206909]
[1767091818258,0.24952349,88170.0,88154.0,0.0113581]
[1767091824464,0.0113564,88169.0,88153.0,0.04071099]
[1767091824866,0.0113567,88167.0,88153.0,0.04071099]
[1767091825069,0.16440059,88163.0,88148.0,0.0113589]
[1767091825260,0.15304349,88160.0,88144.0,0.0113594]
[1767091825461,0.15304349,88154.0,88139.0,0.08124582]
[1767091825668,0.15304349,88154.0,88133.0,8.897e-05]
[1767091825669,0.011359,88149.0,88135.0,0.09652]
[1767091825866,0.15304349,88150.0,88135.0,0.09652]
[1767091826064,0.15304349,88150.0,88136.0,0.0113605]
[1767091826368,0.15304349,88150.0,88138.0,0.0113602]
[1767091827167,0.05692,88154.0,88138.0,0.0113602]
[1767091827359,0.15304349,88150.0,88138.0,0.0113602]
[1767091828063,0.05696,88149.0,88138.0,0.0113602]
[1767091831268,0.05696,88149.0,88140.0,0.01136]
[1767091831465,0.0113579,88157.0,88140.0,0.01136]
[1767091831669,0.0113581,88155.0,88137.0,0.0113604]
[1767091831971,0.15344,88156.0,88137.0,0.0113604]
[1767091831972,0.15304349,88150.0,88137.0,0.0113604]
[1767091832269,0.20996349,88150.0,88137.0,0.0113604]
[1767091833282,0.15304349,88150.0,88137.0,0.0113604]
[1767091833570,0.20996349,88150.0,88137.0,0.0113604]
[1767091834272,0.15304349,88150.0,88137.0,0.0113604]
[1767091834465,0.05692,88149.0,88137.0,0.0113604]
[1767091835073,0.15304349,88150.0,88137.0,0.0113604]
[1767091835273,0.05692,88149.0,88137.0,0.0113604]
[1767091835474,0.15304349,88150.0,88137.0,0.0113604]
[1767091835672,0.05692,88149.0,88137.0,0.0113604]
[1767091837378,0.15304349,88150.0,88137.0,0.0113604]
[1767091837584,0.05692,88149.0,88137.0,0.0113604]
[1767091843979,0.05692,88149.0,88135.0,0.09652]
[1767091844476,0.05692,88149.0,88136.0,0.0113605]
[1767091844877,0.0113596,88144.0,88128.0,0.05692]
[1767091845177,0.00017016,88145.0,88129.0,0.05692]
[1767091845574,0.00017016,88145.0,88130.0,0.0113613]
[1767091845877,8.897e-05,88144.0,88130.0,0.0113613]
[1767091846685,8.897e-05,88144.0,88129.0,0.05692]
[1767091852388,0.0113597,88143.0,88126.0,0.0113618]
[1767091854184,8.897e-05,88144.0,88126.0,0.0113618]
[1767091854387,0.09660897,88144.0,88128.0,0.0113615]
[1767091855477,0.10796857,88144.0,88128.0,0.0113615]
[1767091858590,0.09660897,88144.0,88128.0,0.0113615]
[1767091860796,0.0113597,88143.0,88128.0,0.0113615]
[1767091860995,0.0113597,88143.0,88125.0,0.07239898]
[1767091861292,0.0113597,88143.0,88127.0,0.0113617]
[1767091861494,0.0113597,88143.0,88125.0,0.06103708]
[1767091861700,8.897e-05,88144.0,88125.0,0.06103708]
[1767091861992,0.05692,88142.0,88127.0,0.0113617]
[1767091862189,0.05692,88142.0,88126.0,0.06103708]
[1767091862796,0.05692,88142.0,88130.0,0.0113612]
[1767091863898,0.05692,88142.0,88126.0,0.06103708]
[1767091864094,0.05692,88142.0,88131.0,0.01134]
[1767091865197,0.05692,88142.0,88131.0,0.0227012]
[1767091866102,0.05692,88142.0,88131.0,0.01134]
[1767091871203,8.897e-05,88144.0,88131.0,0.01134]
[1767091871995,8.897e-05,88144.0,88136.0,0.0113605]
[1767091872201,8.897e-05,88144.0,88138.0,0.0113603]
[1767091872403,8.897e-05,88144.0,88135.0,0.0113607]
[1767091872703,8.897e-05,88144.0,88132.0,0.011361]
[1767091872896,8.897e-05,88144.0,88134.0,0.0113607]
[1767091873703,8.897e-05,88144.0,88133.0,0.05692]
[1767091874004,8.897e-05,88144.0,88135.0,0.0113606]
[1767091874211,0.05692,88149.0,88137.0,0.0113604]
[1767091875001,0.011358,88157.0,88142.0,0.0113597]
[1767091875307,0.08133809,88156.0,88142.0,0.0113597]
[1767091875491,0.02441809,88155.0,88142.0,0.0113597]
[1767091875696,0.02441809,88154.0,88142.0,0.0113597]
[1767091875899,0.05692,88156.0,88142.0,0.0113597]
[1767091876096,0.02441639,88155.0,88142.0,0.0113597]
[1767091876307,0.05692,88156.0,88142.0,0.0113597]
[1767091876502,0.02441283,88155.0,88142.0,0.0113597]
[1767091876697,0.05692,88156.0,88142.0,0.0113597]
[1767091876899,0.02441283,88155.0,88142.0,0.0113597]
[1767091877098,0.05692,88156.0,88144.0,0.0113595]
[1767091877299,0.08133266,88155.0,88144.0,0.0113595]
[1767091877499,0.05692,88155.0,88144.0,0.0113595]
[1767091877699,0.02441024,88154.0,88144.0,0.0113595]
[1767091877900,0.02441024,88153.0,88144.0,0.0113595]
[1767091878100,0.02441024,88152.0,88144.0,0.0113595]
[1767091878300,0.02441024,88151.0,88144.0,0.0113595]
[1767091878502,0.05692,88155.0,88144.0,0.0113595]
[1767091878702,0.02440829,88154.0,88141.0,0.01152996]
[1767091878902,0.02440829,88153.0,88141.0,0.01152996]
[1767091879103,0.02440829,88152.0,88141.0,0.01152996]
[1767091879302,0.02440829,88151.0,88141.0,0.01152996]
[1767091879505,0.05692,88155.0,88141.0,0.01152996]
[1767091879704,0.02440668,88154.0,88141.0,0.01152996]
[1767091879905,0.02440668,88153.0,88141.0,0.01152996]
[1767091880104,0.02440668,88152.0,88141.0,0.01152996]
[1767091880317,0.02440668,88151.0,88141.0,0.01152996]
[1767091880615,0.05692,88155.0,88141.0,0.01152996]
[1767091880817,0.02440539,88154.0,88141.0,0.01152996]
[1767091881114,0.02440539,88153.0,88141.0,0.01152996]
[1767091881413,0.02440539,88152.0,88141.0,0.01152996]
[1767091881610,0.02440539,88151.0,88141.0,0.01152996]
[1767091881909,0.05692,88155.0,88141.0,0.01152996]
[1767091882115,0.02440431,88154.0,88141.0,0.01152996]
[1767091882316,0.02440431,88153.0,88141.0,0.01152996]
[1767091882515,0.02440431,88152.0,88141.0,0.01152996]
[1767091882814,0.05692,88155.0,88141.0,0.01152996]
[1767091883016,0.02440301,88154.0,88141.0,0.01152996]
[1767091883210,0.02440301,88153.0,88141.0,0.01152996]
[1767091883411,0.02440301,88152.0,88141.0,0.00017016]
[1767091883611,0.0113583,88154.0,88141.0,0.00017016]
[1767091883815,0.02440214,88153.0,88141.0,0.00017016]
[1767091884006,0.02440214,88152.0,88141.0,0.00017016]
[1767091884211,0.0682783,88154.0,88141.0,0.00017016]
[1767091884410,0.02440153,88153.0,88141.0,0.00017016]
[1767091884625,0.02440153,88152.0,88141.0,0.00017016]
[1767091884813,0.0113583,88154.0,88141.0,0.00017016]
[1767091885112,0.02440153,88153.0,88141.0,0.00017016]
[1767091885314,0.02440153,88152.0,88141.0,0.00017016]
[1767091885617,0.0682783,88154.0,88141.0,0.00017016]
[1767091885923,0.02440109,88153.0,88141.0,0.00017016]
[1767091886107,0.02440109,88152.0,88141.0,0.00017016]
[1767091886312,0.0682783,88154.0,88141.0,0.00017016]
[1767091886505,0.02440083,88153.0,88141.0,0.00017016]
[1767091886718,0.02440083,88152.0,88141.0,0.00017016]
[1767091886920,0.0682783,88154.0,88141.0,0.00017016]
[1767091887116,0.02440078,88153.0,88141.0,0.00017016]
[1767091887315,0.02440078,88152.0,88141.0,0.00017016]
[1767091887512,0.0113586,88152.0,88141.0,0.00017016]
[1767091887814,0.0113597,88143.0,88128.0,0.0113616]
[1767091888020,0.01136,88141.0,88127.0,0.05688]
[1767091888824,0.0113596,88144.0,88127.0,0.0682417]
[1767091890923,0.0113598,88142.0,88127.0,0.0682417]
[1767091892318,0.0113598,88142.0,88127.0,0.05688]
[1767091893424,0.0113605,88137.0,88120.0,0.05692]
[1767091893618,0.0113613,88131.0,88120.0,0.05692]
[1767091893817,0.0113615,88129.0,88118.0,0.0987897]
[1767091894514,0.0113615,88129.0,88118.0,0.0022697]
[1767091895227,0.0113619,88127.0,88110.0,0.05692]
[1767091897230,0.0113614,88130.0,88110.0,0.05692]
[1767091898229,0.0113618,88127.0,88110.0,0.05692]
[1767091898426,0.00017016,88137.0,88109.0,0.05692]
[1767091898622,0.15334155,88120.0,88109.0,0.05692]
[1767091898816,0.15334155,88120.0,88106.0,0.09656]
[1767091899528,0.15334155,88120.0,88104.0,0.05692]
[1767091900029,0.0113628,88119.0,88104.0,0.05692]
[1767091900232,0.15334155,88120.0,88104.0,0.05692]
[1767091902229,0.16470425,88120.0,88104.0,0.05692]
[1767091902733,0.15334155,88120.0,88104.0,0.05692]
[1767091903327,0.15334155,88120.0,88104.0,0.0682846]
[1767091903529,0.0113623,88123.0,88104.0,0.0682846]
[1767091903937,0.05692,88124.0,88108.0,0.0113642]
[1767091905736,0.15334155,88120.0,88105.0,0.0113645]
[1767091907040,0.15334155,88120.0,88107.0,0.0113643]
[1767091907425,0.15334155,88120.0,88104.0,0.0682846]
[1767091907630,0.0113613,88131.0,88110.0,0.15334155]
[1767091907831,0.0682813,88131.0,88116.0,0.0113631]
[1767091908029,0.0682813,88131.0,88116.0,0.0682831]
[1767091908030,0.05692,88131.0,88116.0,0.0682831]
[1767091909336,0.15334155,88130.0,88116.0,0.05692]
[1767091910342,0.15334155,88130.0,88117.0,0.011363]
[1767091911142,0.16470295,88130.0,88116.0,0.05692]
[1767091911339,0.16470295,88130.0,88115.0,0.05692]
[1767091911643,0.15334155,88126.0,88115.0,0.05692]
[1767091911938,0.15334155,88130.0,88115.0,0.05692]
[1767091912434,0.0113617,88128.0,88115.0,0.05692]
[1767091912633,0.0113615,88129.0,88114.0,0.05692]
[1767091913635,0.0113597,88143.0,88127.0,0.0113617]
[1767091913836,0.05692,88141.0,88129.0,0.0113614]
[1767091914037,0.05692,88145.0,88130.0,0.15334155]
[1767091914241,0.05692,88145.0,88129.0,0.0113614]
[1767091914943,0.0682795,88145.0,88128.0,0.00017016]
[1767091915738,0.05692,88145.0,88128.0,0.00017016]
[1767091915945,0.0113613,88131.0,88115.0,0.05692]
[1767091916143,0.15334155,88125.0,88115.0,0.05692]
[1767091916343,0.15334155,88130.0,88115.0,0.05692]
[1767091916534,0.05692,88132.0,88115.0,0.05692]
[1767091917046,0.05692,88132.0,88116.0,0.0113631]
[1767091917451,0.0113613,88131.0,88115.0,0.05692]
[1767091917947,0.0113615,88129.0,88115.0,0.05692]
[1767091918850,0.0113618,88127.0,88115.0,0.05692]
[1767091919047,0.0113613,88131.0,88115.0,0.05692]
[1767091919257,0.0113615,88129.0,88115.0,0.05692]
[1767091920144,0.0113618,88127.0,88115.0,0.05692]
[1767091920545,0.15334155,88130.0,88105.0,0.0113645]
[1767091920745,0.0113626,88121.0,88106.0,0.15348]
[1767091921451,0.0113626,88121.0,88107.0,0.15348]
[1767091921845,0.0113621,88124.0,88107.0,0.15348]
[1767091922045,0.0113621,88124.0,88110.0,0.15334155]
[1767091922747,0.00017016,88126.0,88110.0,0.16470545]
[1767091922942,0.00017016,88126.0,88110.0,0.0113639]
[1767091923256,0.00017016,88126.0,88107.0,0.15348]
[1767091923447,0.0113624,88122.0,88107.0,0.15348]
[1767091923648,0.0113627,88120.0,88107.0,0.15348]
[1767091923845,0.0113623,88123.0,88107.0,0.15348]
[1767091924046,0.00017016,88126.0,88107.0,0.15348]
[1767091925049,0.00017016,88126.0,88108.0,0.01134]
[1767091925250,0.0113624,88122.0,88108.0,0.01134]
[1767091925554,0.16470425,88120.0,88108.0,0.01134]
[1767091925951,0.0113627,88120.0,88108.0,0.01134]
[1767091926556,0.0113622,88124.0,88108.0,0.01134]
[1767091927060,0.00017016,88126.0,88110.0,0.15334155]
[1767091927358,0.00017016,88126.0,88108.0,0.01134]
[1767091927854,0.00017016,88126.0,88108.0,0.0227041]
[1767091927855,0.011362,88125.0,88108.0,0.0227041]
[1767091928358,0.0113612,88131.0,88112.0,0.0113636]
[1767091928555,0.17858148,88130.0,88114.0,0.0113633]
[1767091928756,0.15334155,88130.0,88114.0,0.0113633]
[1767091929656,0.21026155,88130.0,88114.0,0.0113633]
[1767091930050,0.0113615,88129.0,88113.0,0.00017016]
[1767091930459,0.0113618,88127.0,88113.0,0.00017016]
[1767091931158,0.21026155,88130.0,88113.0,0.00017016]
[1767091931458,0.0113629,88119.0,88113.0,0.00017016]
[1767091931956,0.0113624,88122.0,88113.0,0.00017016]
[1767091932560,0.0113619,88126.0,88113.0,0.00017016]
[1767091932858,0.0113615,88129.0,88113.0,0.00017016]
[1767091933659,0.0113618,88127.0,88113.0,0.00017016]
[1767091934061,0.05692,88130.0,88113.0,0.00017016]
[1767091934758,0.00017016,88131.0,88113.0,0.00017016]
[1767091934954,0.00017016,88131.0,88119.0,0.0113627]
[1767091935157,0.00017016,88131.0,88116.0,0.05692]
[1767091935351,0.15334155,88130.0,88116.0,0.05692]
[1767091935752,0.0113628,88120.0,88113.0,0.05692]
[1767091936459,0.0113627,88120.0,88113.0,0.05692]
[1767091937454,0.16470385,88123.0,88113.0,0.05692]
[1767091940562,0.15334155,88123.0,88113.0,0.05692]
[1767091940766,0.15334155,88123.0,88101.0,0.05692]
[1767091940967,0.15334155,88110.0,88101.0,0.05692]
[1767091941158,0.15334155,88120.0,88101.0,0.05692]
[1767091941358,0.011363,88117.0,88101.0,0.05692]
[1767091941569,0.011363,88117.0,88101.0,0.05687]
[1767091942973,0.0113634,88115.0,88101.0,0.05687]
[1767091943173,0.15334155,88111.0,88101.0,0.05687]
[1767091944080,0.0113639,88110.0,88101.0,0.05687]
[1767091944280,0.15334155,88111.0,88097.0,0.15348]
[1767091944782,0.15334155,88110.0,88097.0,0.15348]
[1767091945880,0.0113645,88106.0,88097.0,0.15348]
[1767091946080,0.0682841,88109.0,88093.0,0.05692]
[1767091947577,0.05692,88109.0,88093.0,0.05692]
[1767091948979,0.05692,88109.0,88092.0,0.01147289]
[1767091949179,0.05692,88109.0,88092.0,0.00010669]
[1767091949982,0.0113645,88106.0,88092.0,0.05702669]
[1767091950185,0.15334155,88102.0,88092.0,0.05702669]
[1767091950379,0.0113645,88106.0,88092.0,0.05702669]
[1767091950580,0.0682841,88109.0,88092.0,0.05702669]
[1767091951483,0.05692,88109.0,88093.0,0.0113661]
[1767091952183,0.05692,88109.0,88092.0,0.05702669]
[1767091953172,0.05692,88109.0,88095.0,0.0113658]
[1767091953376,0.05692,88109.0,88097.0,0.0113655]
[1767091953984,0.0113644,88107.0,88092.0,0.05702669]
[1767091954187,0.05692,88109.0,88092.0,0.06839289]
[1767091955290,0.05692,88109.0,88094.0,0.011366]
[1767091956088,0.0113642,88108.0,88092.0,0.00010669]
[1767091956283,0.05692,88109.0,88092.0,5.669e-05]
[1767091956490,0.011365,88102.0,88084.0,0.0113672]
[1767091956678,0.15334155,88100.0,88084.0,0.0113672]
[1767091957374,0.00010669,88099.0,88086.0,0.0113669]
[1767091958081,0.00010669,88099.0,88088.0,0.0113667]
[1767091959283,0.00010669,88099.0,88081.0,0.05692]
[1767091959488,0.00010669,88099.0,88088.0,0.0113666]
[1767091960491,0.00010669,88099.0,88084.0,0.0113672]
[1767091961390,0.00010669,88099.0,88083.0,0.0113673]
[1767091961693,0.00010669,88099.0,88084.0,0.0113672]